fUST/lending_fUST_20250206
["ID","MTS","AMOUNT","RATE_DAILY","PERIOD"]
[351815603,1738798254655,-519.32634292,0.00013972,2]
[351815604,1738798254666,-500.0,0.00013972,2]
[351815605,1738798254676,-705.52,0.00013972,2]
[351815606,1738798254686,-403.29243316,0.00013972,2]
[351815607,1738798254697,-969.15,0.00013972,2]
[351815608,1738798254706,-924.05,0.00013972,2]
[351815609,1738798254715,-500.0,0.00013972,2]
[351815610,1738798254725,-500.0,0.00013972,2]
[351815611,1738798254734,-500.0,0.00013972,2]
[351815612,1738798254744,-500.0,0.00013972,2]
[351815613,1738798254753,-1103.61,0.00013972,2]
[351815614,1738798254763,-500.0,0.00013972,2]
[351815615,1738798254772,-548.93,0.00013972,2]
[351815616,1738798254781,-1778.75,0.00013972,2]
[351815617,1738798254791,-151.0,0.00013972,2]
[351815618,1738798254800,-575.63,0.00013972,2]
[351815619,1738798254809,-2759.48,0.00013972,2]
[351815620,1738798254818,-667.62,0.00013972,2]
[351815621,1738798254828,-500.0,0.00013972,2]
[351815622,1738798254837,-500.0,0.00013972,2]
[351815623,1738798254846,-500.0,0.00013972,2]
[351815624,1738798254855,-683.1,0.00013972,2]
[351815625,1738798254865,-500.0,0.00013972,2]
[351815626,1738798254875,-643.62562539,0.00013972,2]
[351815627,1738798254884,-560.67641647,0.00013972,2]
[351815628,1738798254893,-2836.05,0.00013972,2]
[351815629,1738798254903,-500.0,0.00013972,2]
[351815630,1738798254912,-500.0,0.00013972,2]
[351815631,1738798254921,-500.0,0.00013972,2]
[351815632,1738798254930,-500.0,0.00013972,2]
[351815633,1738798254939,-1346.91,0.00013972,2]
[351815634,1738798254949,-500.0,0.00013972,2]
[351815635,1738798254958,-500.0,0.00013972,2]
[351815636,1738798254967,-500.0,0.00013972,2]
[351815637,1738798254977,-501.85260434,0.00013972,2]
[351815638,1738798254989,-546.28,0.00013972,2]
[351815639,1738798254998,-500.0,0.00013972,2]
[351815640,1738798255007,-500.0,0.00013972,2]
[351815641,1738798255018,-500.0,0.00013972,2]
[351815642,1738798255027,-500.0,0.00013972,2]
[351815643,1738798255037,-534.65,0.00013972,2]
[351815644,1738798255049,-1172.95,0.00013972,2]
[351815645,1738798255061,-1113.56,0.00013972,2]
[351815646,1738798255071,-500.0,0.00013972,2]
[351815647,1738798255081,-502.62098657,0.00013972,2]
[351815648,1738798255092,-802.01,0.00013972,2]
[351815649,1738798255104,-602.54,0.00013972,2]
[351815650,1738798255113,-500.0,0.00013972,2]
[351815651,1738798255124,-500.0,0.00013972,2]
[351815652,1738798255134,-500.0,0.00013972,2]
[351815653,1738798255145,-500.0,0.00013972,2]
[351815654,1738798255155,-630.92,0.00013972,2]
[351815655,1738798255167,-500.0,0.00013972,2]
[351815656,1738798255176,-151.0,0.00013972,2]
[351815657,1738798255185,-168.13140738,0.00013972,2]
[351815658,1738798255195,-151.0,0.00013972,2]
[351815659,1738798255204,-976.83,0.00013972,2]
[351815660,1738798255213,-781.04,0.00013972,2]
[351815661,1738798255223,-500.0,0.00013972,2]
[351815662,1738798255233,-688.72,0.00013972,2]
[351815663,1738798255243,-782.89,0.00013972,2]
[351815664,1738798255253,-500.0,0.00013972,2]
[351815665,1738798255262,-500.0,0.00013972,2]
[351815666,1738798255395,-3331.81,0.00013972,2]
[351815667,1738798255406,-1726.27,0.00013972,2]
[351815668,1738798255417,-500.0,0.00013972,2]
[351815669,1738798255426,-500.0,0.00013972,2]
[351815670,1738798255435,-500.0,0.00013972,2]
[351815671,1738798255445,-696.85,0.00013972,2]
[351815672,1738798255454,-676.04,0.00013972,2]
[351815673,1738798255464,-500.0,0.00013972,2]
[351815674,1738798255475,-500.0,0.00013972,2]
[351815675,1738798255484,-170.225871,0.00013972,2]
[351815676,1738798255493,-500.0,0.00013972,2]
[351815677,1738798255503,-170.225871,0.00013972,2]
[351815678,1738798255512,-1398.25,0.00013972,2]
[351815679,1738798255522,-559.5,0.00013972,2]
[351815680,1738798255531,-500.0,0.00013972,2]
[351815681,1738798255541,-697.71,0.00013972,2]
[351815682,1738798255550,-500.0,0.00013972,2]
[351815683,1738798255559,-500.0,0.00013972,2]
[351815684,1738798255569,-993.14,0.00013972,2]
[351815685,1738798255580,-500.0,0.00013972,2]
[351815686,1738798255590,-500.0,0.00013972,2]
[351815687,1738798255601,-329.90026881,0.00013972,2]
[351815688,1738798255612,-500.0,0.00013972,2]
[351815689,1738798255622,-500.0,0.00013972,2]
[351815690,1738798255632,-1338.57,0.00013972,2]
[351815691,1738798255641,-550.82,0.00013972,2]
[351815692,1738798255651,-500.0,0.00013972,2]
[351815693,1738798255660,-500.0,0.00013972,2]
[351815694,1738798255672,-500.0,0.00013972,2]
[351815695,1738798255682,-500.0,0.00013972,2]
[351815696,1738798255692,-600.42,0.00013972,2]
[351815697,1738798255702,-500.0,0.00013972,2]
[351815698,1738798255711,-500.0,0.00013972,2]
[351815699,1738798255721,-500.0,0.00013972,2]
[351815700,1738798255730,-500.0,0.00013972,2]
[351815701,1738798255740,-480.53463912,0.00013972,2]
[351815702,1738798255749,-1473.29,0.00013972,2]
[351815703,1738798255759,-151.0,0.00013972,2]
[351815704,1738798255768,-938.69,0.00013972,2]
[351815705,1738798255778,-151.0,0.00013972,2]
[351815706,1738798255788,-526.8304261,0.00013972,2]
[351815707,1738798255798,-500.0,0.00013972,2]
[351815708,1738798255807,-814.25,0.00013972,2]
[351815709,1738798255817,-151.0,0.00013972,2]
[351815710,1738798255826,-559.63,0.00013972,2]
[351815711,1738798255836,-500.0,0.00013972,2]
[351815712,1738798255846,-687.0,0.00013972,2]
[351815713,1738798255855,-662.34,0.00013972,2]
[351815714,1738798255865,-500.0,0.00013972,2]
[351815715,1738798255874,-274.396718,0.00013972,2]
[351815716,1738798255884,-500.0,0.00013972,2]
[351815717,1738798255894,-500.0,0.00013972,2]
[351815718,1738798255903,-500.0,0.00013972,2]
[351815719,1738798255912,-613.03,0.00013972,2]
[351815720,1738798255922,-500.0,0.00013972,2]
[351815721,1738798255931,-620.93,0.00013972,2]
[351815722,1738798255940,-1292.63,0.00013972,2]
[351815723,1738798255950,-792.57,0.00013972,2]
[351815724,1738798255959,-525.18,0.00013972,2]
[351815725,1738798255968,-500.0,0.00013972,2]
[351815726,1738798255979,-2430.58,0.00013972,2]
[351815727,1738798255990,-221.58010339,0.00013972,2]
[351815728,1738798256004,-500.0,0.00013972,2]
[351815729,1738798256013,-500.0,0.00013972,2]
[351815730,1738798256025,-151.0,0.00013972,2]
[351815731,1738798256035,-151.0,0.00013972,2]
[351815732,1738798256046,-601.76,0.00013972,2]
[351815733,1738798256058,-772.37,0.00013972,2]
[351815734,1738798256068,-500.0,0.00013972,2]
[351815735,1738798256077,-801.55,0.00013972,2]
[351815736,1738798256087,-500.0,0.00013972,2]
[351815737,1738798256096,-500.0,0.00013972,2]
[351815738,1738798256106,-606.66,0.00013972,2]
[351815739,1738798256119,-500.0,0.00013972,2]
[351815740,1738798256130,-621.79,0.00013972,2]
[351815741,1738798256142,-7862.65,0.00013972,2]
[351815742,1738798256153,-567.56756657,0.00013972,2]
[351815743,1738798256162,-500.0,0.00013972,2]
[351815744,1738798256172,-1142.79,0.00013972,2]
[351815745,1738798256181,-2019.08,0.00013972,2]
[351815746,1738798256191,-500.0,0.00013972,2]
[351815747,1738798256200,-151.0,0.00013972,2]
[351815748,1738798256210,-151.0,0.00013972,2]
[351815749,1738798256220,-1000.0,0.00013972,2]
[351815750,1738798256229,-21877.09,0.00013972,2]
[351815751,1738798256239,-500.0,0.00013972,2]
[351815752,1738798256249,-273.469482,0.00013972,2]
[351815753,1738798256259,-990.69,0.00013972,2]
[351815754,1738798256268,-890.56,0.00013972,2]
[351815755,1738798256278,-334.04206837,0.00013972,2]
[351815756,1738798256296,-165.95793163,0.00013972,2]
[351815757,1738798256306,-2212.9,0.00013972,2]
[351815758,1738798256316,-4316.39,0.00013972,2]
[351815759,1738798256326,-1046.8,0.00013972,2]
[351815760,1738798256335,-1370.55,0.00013972,2]
[351815761,1738798256345,-500.0,0.00013972,2]
[351815762,1738798256354,-500.0,0.00013972,2]
[351815763,1738798256364,-1413.72,0.00013972,2]
[351815764,1738798256374,-500.0,0.00013972,2]
[351815765,1738798256383,-500.0,0.00013972,2]
[351815766,1738798256393,-4964.8,0.00013972,2]
[351815767,1738798256402,-151.899016,0.00013972,2]
[351815768,1738798256412,-563.66,0.00013972,2]
[351815769,1738798256426,-2741.6,0.00013972,2]
[351815770,1738798256436,-500.0,0.00013972,2]
[351815771,1738798256447,-500.0,0.00013972,2]
[351815772,1738798256457,-589.02872179,0.00013972,2]
[351815773,1738798256468,-500.0,0.00013972,2]
[351815774,1738798256478,-2150.18,0.00013972,2]
[351815775,1738798256489,-500.0,0.00013972,2]
[351815776,1738798256499,-500.0,0.00013972,2]
[351815777,1738798256509,-500.0,0.00013972,2]
[351815778,1738798256519,-500.0,0.00013972,2]
[351815779,1738798256529,-758.35,0.00013972,2]
[351815780,1738798256539,-6762.17,0.00013972,2]
[351815781,1738798256549,-1928.06,0.00013972,2]
[351815782,1738798256559,-953.92,0.00013972,2]
[351815783,1738798256569,-151.0,0.00013972,2]
[351815784,1738798256579,-151.0,0.00013972,2]
[351815785,1738798256589,-650.91,0.00013972,2]
[351815786,1738798256600,-950.07,0.00013972,2]
[351815787,1738798256609,-284.93659093,0.00013972,2]
[351815788,1738798256619,-500.0,0.00013972,2]
[351815789,1738798256629,-500.0,0.00013972,2]
[351815790,1738798256639,-500.0,0.00013972,2]
[351815791,1738798256648,-500.0,0.00013972,2]
[351815792,1738798256658,-500.0,0.00013972,2]
[351815793,1738798256672,-822.67,0.00013972,2]
[351815794,1738798256682,-500.0,0.00013972,2]
[351815795,1738798256691,-500.0,0.00013972,2]
[351815796,1738798256701,-500.0,0.00013972,2]
[351815797,1738798256711,-171.76613922,0.00013972,2]
[351815798,1738798256721,-1344.99,0.00013972,2]
[351815799,1738798256733,-500.0,0.00013972,2]
[351815800,1738798256746,-500.0,0.00013972,2]
[351815801,1738798256755,-776.14,0.00013972,2]
[351815802,1738798256766,-500.0,0.00013972,2]
[351815803,1738798256776,-500.0,0.00013972,2]
[351815804,1738798256786,-500.0,0.00013972,2]
[351815805,1738798256796,-500.0,0.00013972,2]
[351815806,1738798256806,-151.0,0.00013972,2]
[351815807,1738798256817,-2282.17,0.00013972,2]
[351815808,1738798256827,-670.6,0.00013972,2]
[351815809,1738798256837,-845.27,0.00013972,2]
[351815810,1738798256848,-500.0,0.00013972,2]
[351815811,1738798256858,-500.0,0.00013972,2]
[351815812,1738798256869,-151.0,0.00013972,2]
[351815813,1738798256879,-151.0,0.00013972,2]
[351815814,1738798256889,-2352.72,0.00013972,2]
[351815815,1738798256900,-602.07,0.00013972,2]
[351815816,1738798256910,-31088.45,0.00013972,2]
[351815817,1738798256920,-151.0,0.00013972,2]
[351815818,1738798256930,-5512.43,0.00013972,2]
[351815819,1738798256941,-151.0,0.00013972,2]
[351815820,1738798256950,-500.0,0.00013972,2]
[351815821,1738798256960,-500.0,0.00013972,2]
[351815822,1738798256970,-57994.48961441,0.00013972,2]
[351815823,1738798258501,10000.0,0.000192,120]
[351815826,1738798276954,10000.0,0.000192,120]
[351815828,1738798351372,160.0,0.0001921,120]
[351815829,1738798460865,8839.25,0.000192,120]
[351815830,1738798470760,160.0,0.00019087,120]
[351815831,1738798489971,6629.44,0.000192,120]
[351815832,1738798523091,4972.08,0.000192,120]
[351815833,1738798530773,160.0,0.00019181,120]
[351815835,1738798601046,3729.06,0.000192,120]
[351815836,1738798625108,2796.79,0.000192,120]
[351815837,1738798640085,2097.6,0.000192,120]
[351815838,1738798650757,160.0,0.00018859,120]
[351815839,1738798658457,3146.39,0.000192,120]
[351815840,1738798692873,3146.39,0.000192,120]
[351815845,1738798890782,160.0,0.00018475,120]
[351815849,1738798950754,160.0,0.00018648,120]
[351815850,1738799011338,160.0,0.00019184,120]
[351815851,1738799070798,160.0,0.00018523,120]
[351815852,1738799310813,160.0,0.00017855,120]
[351815856,1738799430779,160.0,0.00017694,120]
[351815895,1738799432273,-543.4164917,0.00012697,2]
[351815898,1738799432283,-310.5390083,0.00013598,2]
[351815900,1738799432294,-305.22520754,0.00013598,2]
[351815902,1738799432304,-193.74376505,0.00013598,2]
[351815904,1738799432314,-500.0,0.00013673,2]
[351815906,1738799432324,-300.0,0.00013696,2]
[351815908,1738799432335,-411.5,0.00013697,2]
[351815910,1738799432348,-500.0,0.00013697,2]
[351815912,1738799432357,-500.0,0.00013697,2]
[351815913,1738799432366,-167.18991251,0.00013697,2]
[351815915,1738799432376,-500.0,0.00013697,2]
[351815917,1738799432386,-500.0,0.00013697,2]
[351815919,1738799432396,-499.35533109,0.00013697,2]
[351815921,1738799432405,-500.0,0.00013697,2]
[351815923,1738799432415,-500.0,0.00013697,2]
[351815925,1738799432425,-500.0,0.00013697,2]
[351815927,1738799432435,-500.0,0.00013697,2]
[351815929,1738799432444,-534.66136362,0.00013697,2]
[351815931,1738799432453,-500.0,0.00013697,2]
[351815933,1738799432463,-500.0,0.00013697,2]
[351815935,1738799432472,-500.0,0.00013697,2]
[351815937,1738799432481,-500.0,0.00013697,2]
[351815939,1738799432490,-500.0,0.00013697,2]
[351815941,1738799432500,-500.0,0.00013697,2]
[351815943,1738799432509,-500.0,0.00013697,2]
[351815945,1738799432519,-500.0,0.00013697,2]
[351815947,1738799432528,-500.0,0.00013697,2]
[351815949,1738799432537,-500.0,0.00013697,2]
[351815951,1738799432546,-500.0,0.00013697,2]
[351815953,1738799432555,-500.0,0.00013697,2]
[351815955,1738799432565,-500.0,0.00013697,2]
[351815957,1738799432574,-500.0,0.00013697,2]
[351815959,1738799432583,-500.0,0.00013697,2]
[351815961,1738799432593,-500.0,0.00013697,2]
[351815963,1738799432602,-500.0,0.00013697,2]
[351815965,1738799432611,-500.0,0.00013697,2]
[351815967,1738799432621,-311.95227262,0.00013697,2]
[351815969,1738799432630,-500.0,0.00013697,2]
[351815971,1738799432639,-500.0,0.00013697,2]
[351815972,1738799432648,-500.0,0.00013697,2]
[351815975,1738799432657,-626.33522049,0.00013697,2]
[351815977,1738799432668,-500.66982686,0.00013698,2]
[351815978,1738799432677,-330.74747134,0.00013698,2]
[351815980,1738799432687,-536.97006421,0.00013698,2]
[351815982,1738799432696,-414.88483309,0.00013698,2]
[351815984,1738799432706,-500.0,0.00013698,2]
[351815986,1738799432715,-374.66244468,0.00013698,2]
[351815988,1738799432725,-500.0,0.00013698,2]
[351815990,1738799432734,-500.0,0.00013698,2]
[351815992,1738799432743,-624.90807282,0.00013698,2]
[351815994,1738799432754,-500.0,0.00013698,2]
[351815996,1738799432763,-500.0,0.00013698,2]
[351815998,1738799432773,-540.54,0.00013698,2]
[351816000,1738799432782,-500.0,0.00013698,2]
[351816002,1738799432792,-500.0,0.00013698,2]
[351816005,1738799432801,-500.0,0.00013698,2]
[351816007,1738799432811,-500.0,0.00013698,2]
[351816008,1738799432820,-500.0,0.00013698,2]
[351816011,1738799432830,-211.0,0.00013698,2]
[351816012,1738799432840,-500.0,0.00013698,2]
[351816015,1738799432849,-500.0,0.00013698,2]
[351816016,1738799432858,-500.0,0.00013698,2]
[351816019,1738799432869,-500.0,0.00013698,2]
[351816021,1738799432879,-500.0,0.00013698,2]
[351816023,1738799432888,-500.0,0.00013698,2]
[351816025,1738799432898,-500.0,0.00013698,2]
[351816027,1738799432907,-500.0,0.00013698,2]
[351816029,1738799432917,-500.0,0.00013698,2]
[351816031,1738799432927,-500.0,0.00013698,2]
[351816033,1738799432936,-210.77487987,0.00013698,2]
[351816035,1738799432945,-500.0,0.00013698,2]
[351816037,1738799432955,-500.0,0.00013698,2]
[351816039,1738799432964,-500.0,0.00013698,2]
[351816041,1738799432973,-500.0,0.00013698,2]
[351816043,1738799432982,-298.7043499,0.00013698,2]
[351816045,1738799432996,-201.2956501,0.00013698,2]
[351816047,1738799433005,-500.0,0.00013698,2]
[351816049,1738799433015,-624.86218227,0.00013698,2]
[351816051,1738799433025,-551.65,0.00013698,2]
[351816053,1738799433034,-500.0,0.00013698,2]
[351816055,1738799433045,-500.0,0.00013698,2]
[351816057,1738799433054,-479.51224932,0.00013698,2]
[351816290,1738799438376,-20.48775068,0.00013698,2]
[351816291,1738799438387,-500.0,0.00013698,2]
[351816292,1738799438396,-247.29528043,0.00013698,2]
[351816293,1738799438405,-500.0,0.00013698,2]
[351816294,1738799438415,-500.0,0.00013698,2]
[351816295,1738799438426,-115.68743005,0.00013698,2]
[351816296,1738799438439,-384.31256995,0.00013698,2]
[351816297,1738799438448,-500.0,0.00013698,2]
[351816298,1738799438458,-500.0,0.00013698,2]
[351816299,1738799438467,-500.0,0.00013698,2]
[351816300,1738799438477,-500.0,0.00013698,2]
[351816301,1738799438487,-500.0,0.00013698,2]
[351816302,1738799438496,-500.0,0.00013698,2]
[351816303,1738799438506,-500.0,0.00013698,2]
[351816304,1738799438515,-502.23891831,0.00013698,2]
[351816305,1738799438525,-500.0,0.00013698,2]
[351816306,1738799438534,-500.0,0.00013698,2]
[351816307,1738799438545,-500.0,0.00013698,2]
[351816308,1738799438554,-512.38,0.00013698,2]
[351816309,1738799438564,-500.0,0.00013698,2]
[351816310,1738799438573,-500.0,0.00013698,2]
[351816311,1738799438583,-500.0,0.00013698,2]
[351816312,1738799438592,-506.43348884,0.00013698,2]
[351816313,1738799438601,-500.0,0.00013698,2]
[351816314,1738799438611,-500.0,0.00013698,2]
[351816315,1738799438620,-500.0,0.00013698,2]
[351816316,1738799438629,-500.0,0.00013698,2]
[351816317,1738799438639,-500.0,0.00013698,2]
[351816318,1738799438649,-500.0,0.00013698,2]
[351816319,1738799438658,-1290.78,0.00013698,2]
[351816320,1738799438670,-500.0,0.00013698,2]
[351816321,1738799438680,-500.0,0.00013698,2]
[351816322,1738799438689,-500.0,0.00013698,2]
[351816323,1738799438698,-500.0,0.00013698,2]
[351816324,1738799438707,-660.02,0.00013698,2]
[351816325,1738799438717,-500.0,0.00013698,2]
[351816326,1738799438726,-500.0,0.00013698,2]
[351816327,1738799438736,-500.0,0.00013698,2]
[351816328,1738799438745,-500.0,0.00013698,2]
[351816329,1738799438755,-500.0,0.00013698,2]
[351816330,1738799438765,-500.0,0.00013698,2]
[351816331,1738799438774,-501.12136402,0.00013698,2]
[351816332,1738799438783,-500.0,0.00013698,2]
[351816333,1738799438793,-500.0,0.00013698,2]
[351816334,1738799438802,-500.0,0.00013698,2]
[351816335,1738799438811,-635.58214511,0.00013698,2]
[351816336,1738799438821,-500.0,0.00013698,2]
[351816337,1738799438830,-500.0,0.00013698,2]
[351816338,1738799438840,-647.87,0.00013698,2]
[351816339,1738799438850,-500.0,0.00013698,2]
[351816340,1738799438859,-503.07941548,0.00013698,2]
[351816341,1738799438868,-500.0,0.00013698,2]
[351816342,1738799438878,-500.0,0.00013698,2]
[351816343,1738799438887,-500.0,0.00013698,2]
[351816344,1738799438896,-500.0,0.00013698,2]
[351816345,1738799438905,-500.0,0.00013698,2]
[351816346,1738799438915,-500.0,0.00013698,2]
[351816347,1738799438926,-500.0,0.00013698,2]
[351816348,1738799438935,-500.0,0.00013698,2]
[351816349,1738799438945,-500.0,0.00013698,2]
[351816350,1738799438955,-500.0,0.00013698,2]
[351816351,1738799438964,-506.24240591,0.00013698,2]
[351816352,1738799438973,-500.0,0.00013698,2]
[351816353,1738799438984,-500.0,0.00013698,2]
[351816354,1738799438994,-951.76,0.00013698,2]
[351816355,1738799439004,-500.0,0.00013698,2]
[351816356,1738799439014,-486.50431685,0.00013698,2]
[351816357,1738799439023,-500.0,0.00013698,2]
[351816358,1738799439033,-500.0,0.00013698,2]
[351816359,1738799439043,-500.0,0.00013698,2]
[351816360,1738799439052,-500.0,0.00013698,2]
[351816361,1738799439061,-502.00920862,0.00013698,2]
[351816362,1738799439071,-500.0,0.00013698,2]
[351816363,1738799439080,-500.0,0.00013698,2]
[351816364,1738799439089,-500.0,0.00013698,2]
[351816365,1738799439099,-500.0,0.00013698,2]
[351816366,1738799439108,-500.0,0.00013698,2]
[351816367,1738799439117,-500.0,0.00013698,2]
[351816368,1738799439127,-527.87,0.00013698,2]
[351816369,1738799439137,-500.0,0.00013698,2]
[351816370,1738799439147,-176.13621671,0.00013698,2]
[351816371,1738799439174,-323.86378329,0.00013698,2]
[351816372,1738799439183,-500.0,0.00013698,2]
[351816373,1738799439194,-500.0,0.00013698,2]
[351816374,1738799439203,-500.0,0.00013698,2]
[351816375,1738799439213,-234.74096042,0.00013698,2]
[351816376,1738799439222,-500.0,0.00013698,2]
[351816377,1738799439231,-500.0,0.00013698,2]
[351816378,1738799439241,-658.38,0.00013698,2]
[351816379,1738799439250,-899.57,0.00013698,2]
[351816380,1738799439261,-500.0,0.00013698,2]
[351816381,1738799439271,-500.0,0.00013698,2]
[351816382,1738799439280,-587.49,0.00013698,2]
[351816383,1738799439290,-500.0,0.00013698,2]
[351816384,1738799439299,-617.59084311,0.00013698,2]
[351816385,1738799439309,-500.0,0.00013698,2]
[351816386,1738799439319,-517.53111765,0.00013698,2]
[351816387,1738799439328,-503.29,0.00013698,2]
[351816388,1738799439338,-226.42954886,0.00013698,2]
[351816389,1738799439350,-634.75,0.00013698,2]
[351816390,1738799439360,-536.31,0.00013698,2]
[351816391,1738799439369,-500.0,0.00013698,2]
[351816392,1738799439379,-709.24,0.00013698,2]
[351816393,1738799439390,-740.19,0.00013698,2]
[351816394,1738799439399,-500.0,0.00013698,2]
[351816395,1738799439408,-500.0,0.00013698,2]
[351816396,1738799439420,-500.0,0.00013698,2]
[351816397,1738799439430,-581.39,0.00013698,2]
[351816398,1738799439439,-500.0,0.00013698,2]
[351816399,1738799439449,-1238.77,0.00013698,2]
[351816400,1738799439459,-500.0,0.00013698,2]
[351816401,1738799439469,-1542.65,0.00013698,2]
[351816402,1738799439479,-500.0,0.00013698,2]
[351816403,1738799439488,-500.0,0.00013698,2]
[351816404,1738799439498,-500.0,0.00013698,2]
[351816405,1738799439508,-500.0,0.00013698,2]
[351816406,1738799439518,-1000.0,0.00013698,2]
[351816407,1738799439528,-523.04,0.00013698,2]
[351816408,1738799439538,-500.0,0.00013698,2]
[351816409,1738799439547,-500.0,0.00013698,2]
[351816410,1738799439557,-500.0,0.00013698,2]
[351816411,1738799439567,-500.0,0.00013698,2]
[351816412,1738799439577,-521.62,0.00013698,2]
[351816413,1738799439586,-500.0,0.00013698,2]
[351816414,1738799439596,-500.0,0.00013698,2]
[351816415,1738799439607,-231.38472543,0.00013698,2]
[351816416,1738799439616,-519.32,0.00013698,2]
[351816417,1738799439625,-503.1668132,0.00013698,2]
[351816418,1738799439635,-501.84386738,0.00013698,2]
[351816419,1738799439644,-500.0,0.00013698,2]
[351816420,1738799439654,-188.0,0.00013698,2]
[351816421,1738799439663,-500.0,0.00013698,2]
[351816422,1738799439675,-547.12,0.00013698,2]
[351816423,1738799439684,-1312.89,0.00013698,2]
[351816424,1738799439694,-1003.19,0.00013698,2]
[351816425,1738799439703,-595.88,0.00013698,2]
[351816426,1738799439713,-500.0,0.00013698,2]
[351816427,1738799439722,-500.0,0.00013698,2]
[351816428,1738799439731,-500.0,0.00013698,2]
[351816435,1738799439890,-500.0,0.00013698,2]
[351816436,1738799439901,-500.0,0.00013698,2]
[351816437,1738799439911,-500.0,0.00013698,2]
[351816438,1738799439921,-500.0,0.00013698,2]
[351816439,1738799439932,-500.0,0.00013698,2]
[351816440,1738799439943,-501.51698432,0.00013698,2]
[351816442,1738799439952,-500.0,0.00013698,2]
[351816443,1738799439962,-500.0,0.00013698,2]
[351816444,1738799439971,-500.0,0.00013698,2]
[351816445,1738799439981,-779.68,0.00013698,2]
[351816446,1738799439990,-500.0,0.00013698,2]
[351816447,1738799440000,-500.0,0.00013698,2]
[351816448,1738799440010,-502.61169903,0.00013698,2]
[351816449,1738799440019,-1057.63,0.00013698,2]
[351816450,1738799440028,-399.05238333,0.00013698,2]
[351816451,1738799440038,-500.0,0.00013698,2]
[351816453,1738799440048,-500.0,0.00013698,2]
[351816455,1738799440057,-198.07942904,0.00013698,2]
[351816457,1738799440066,-500.0,0.00013698,2]
[351816458,1738799440076,-501.56384328,0.00013698,2]
[351816459,1738799440085,-1109.39,0.00013698,2]
[351816460,1738799440094,-186.28280467,0.00013698,2]
[351816461,1738799440104,-500.0,0.00013698,2]
[351816462,1738799440113,-500.0,0.00013698,2]
[351816463,1738799440122,-500.0,0.00013698,2]
[351816464,1738799440132,-500.0,0.00013698,2]
[351816465,1738799440141,-676.12,0.00013698,2]
[351816466,1738799440150,-500.0,0.00013698,2]
[351816467,1738799440161,-885.54,0.00013698,2]
[351816468,1738799440171,-500.0,0.00013698,2]
[351816469,1738799440180,-555.01,0.00013698,2]
[351816470,1738799440190,-928.77,0.00013698,2]
[351816472,1738799440199,-502.08279943,0.00013698,2]
[351816473,1738799440208,-726.75,0.00013698,2]
[351816474,1738799440217,-500.0,0.00013698,2]
[351816476,1738799440226,-500.0,0.00013698,2]
[351816478,1738799440235,-300.0,0.00013698,2]
[351816480,1738799440245,-500.0,0.00013698,2]
[351816482,1738799440254,-500.0,0.00013698,2]